[Event "Titled Tuesday Blitz January 10 Early 2023"]
[White "Dominguez Perez, Leinier"]
[Black "Kosakowski, Jakub"]
[WhiteFideId "3503240"]
[BlackFideId "1185080"]
[WhiteElo "2739"]
[BlackElo "2485"]
[Result "1/2-1/2"]
[Round "05"]
[TimeControl "180+2"]
[Date "2023.01.10"]
[WhiteClock "0:00:08"]
[BlackClock "0:00:26"]

1. e4 {[%clk 0:03:00]}  c6 {[%clk 0:02:59]} 2. d4 {[%clk 0:03:00]}  d5 {[%clk 0:02:59]} 3. e5 {[%clk 0:03:01]}  Bf5 {[%clk 0:03:00]} 4. Nf3 {[%clk 0:03:01]}  e6 {[%clk 0:03:00]} 5. Be2 {[%clk 0:03:01]}  Ne7 {[%clk 0:03:00]} 6. O-O {[%clk 0:03:01]}  c5 {[%clk 0:03:00]} 7. c4 {[%clk 0:02:52]}  Nbc6 {[%clk 0:03:00]} 8. dxc5 {[%clk 0:02:44]}  dxc4 {[%clk 0:02:59]} 9. Bxc4 {[%clk 0:02:32]}  Ng6 {[%clk 0:02:56]} 10. Be3 {[%clk 0:02:27]}  Be7 {[%clk 0:02:55]} 11. Nc3 {[%clk 0:02:20]}  O-O {[%clk 0:02:55]} 12. Be2 {[%clk 0:02:14]}  Qb8 {[%clk 0:02:55]} 13. Qa4 {[%clk 0:01:52]}  Ngxe5 {[%clk 0:02:40]} 14. Rfd1 {[%clk 0:01:44]}  a6 {[%clk 0:02:27]} 15. h3 {[%clk 0:01:37]}  Qc7 {[%clk 0:02:20]} 16. b4 {[%clk 0:01:27]}  Rfd8 {[%clk 0:02:17]} 17. a3 {[%clk 0:01:18]}  Nxf3+ {[%clk 0:02:12]} 18. Bxf3 {[%clk 0:01:18]}  Bf6 {[%clk 0:02:12]} 19. Rac1 {[%clk 0:00:57]}  Nd4 {[%clk 0:02:05]} 20. Bxd4 {[%clk 0:00:51]}  Bxd4 {[%clk 0:02:05]} 21. Ne2 {[%clk 0:00:44]}  Be5 {[%clk 0:01:40]} 22. Rxd8+ {[%clk 0:00:43]}  Rxd8 {[%clk 0:01:40]} 23. Rd1 {[%clk 0:00:44]}  h6 {[%clk 0:01:27]} 24. g4 {[%clk 0:00:43]}  Bd3 {[%clk 0:01:20]} 25. Nc1 {[%clk 0:00:35]}  Bb5 {[%clk 0:01:15]} 26. Rxd8+ {[%clk 0:00:34]}  Qxd8 {[%clk 0:01:16]} 27. Qc2 {[%clk 0:00:33]}  Qd4 {[%clk 0:01:13]} 28. Qe4 {[%clk 0:00:20]}  Qxe4 {[%clk 0:01:01]} 29. Bxe4 {[%clk 0:00:20]}  Bb2 {[%clk 0:01:02]} 30. Nb3 {[%clk 0:00:14]}  Bxa3 {[%clk 0:01:00]} 31. Nd4 {[%clk 0:00:11]}  Bxb4 {[%clk 0:00:55]} 32. Nxb5 {[%clk 0:00:10]}  axb5 {[%clk 0:00:55]} 33. c6 {[%clk 0:00:11]}  bxc6 {[%clk 0:00:38]} 34. Bxc6 {[%clk 0:00:11]}  Bd6 {[%clk 0:00:38]} 35. Bxb5 {[%clk 0:00:11]}  Kf8 {[%clk 0:00:39]} 36. Kg2 {[%clk 0:00:10]}  Ke7 {[%clk 0:00:39]} 37. Ba4 {[%clk 0:00:11]}  Kf6 {[%clk 0:00:38]} 38. Bb5 {[%clk 0:00:10]}  Kg5 {[%clk 0:00:38]} 39. Be8 {[%clk 0:00:10]}  f5 {[%clk 0:00:37]} 40. gxf5 {[%clk 0:00:09]}  exf5 {[%clk 0:00:38]} 41. Bd7 {[%clk 0:00:09]}  Kf4 {[%clk 0:00:38]} 42. Bc8 {[%clk 0:00:09]}  Bc5 {[%clk 0:00:38]} 43. Bd7 {[%clk 0:00:09]}  g5 {[%clk 0:00:36]} 44. Bc8 {[%clk 0:00:09]}  h5 {[%clk 0:00:30]} 45. f3 {[%clk 0:00:08]}  Bb6 {[%clk 0:00:26]} 46. Bd7 {[%clk 0:00:08]}  Ke5 {[%clk 0:00:26]} 47. Be8 {[%clk 0:00:08]}  h4 {[%clk 0:00:26]} 48. Bd7 {[%clk 0:00:08]} 1/2-1/2


[Site "https://www.chess.com"]

[Event "Titled Tuesday Blitz January 10 Early 2023"]
[White "Kamsky, Gata"]
[Black "Karthik Rajaa"]
[WhiteFideId "2000024"]
[BlackFideId "25035215"]
[WhiteElo "2665"]
[BlackElo "2276"]
[Result "1-0"]
[Round "05"]
[TimeControl "180+2"]
[Date "2023.01.10"]
[WhiteClock "0:01:00"]
[BlackClock "0:00:04"]

1. e4 {[%clk 0:03:00]}  c6 {[%clk 0:02:59]} 2. d4 {[%clk 0:02:57]}  d5 {[%clk 0:03:00]} 3. exd5 {[%clk 0:02:56]}  cxd5 {[%clk 0:03:00]} 4. Bd3 {[%clk 0:02:55]}  Nc6 {[%clk 0:02:59]} 5. c3 {[%clk 0:02:54]}  Qc7 {[%clk 0:02:59]} 6. Ne2 {[%clk 0:02:52]}  Bg4 {[%clk 0:02:56]} 7. O-O {[%clk 0:02:47]}  e6 {[%clk 0:02:54]} 8. Qe1 {[%clk 0:02:46]}  Nf6 {[%clk 0:02:28]} 9. f3 {[%clk 0:02:46]}  Bh5 {[%clk 0:02:28]} 10. Qh4 {[%clk 0:02:42]}  Bg6 {[%clk 0:02:29]} 11. Bxg6 {[%clk 0:02:37]}  fxg6 {[%clk 0:02:30]} 12. Nd2 {[%clk 0:02:26]}  Bd6 {[%clk 0:02:26]} 13. f4 {[%clk 0:02:12]}  O-O {[%clk 0:02:24]} 14. Nf3 {[%clk 0:02:06]}  Ne4 {[%clk 0:02:20]} 15. Ng5 {[%clk 0:02:04]}  Nxg5 {[%clk 0:02:18]} 16. Qxg5 {[%clk 0:02:04]}  Rf5 {[%clk 0:02:08]} 17. Qg4 {[%clk 0:02:03]}  g5 {[%clk 0:02:05]} 18. Ng3 {[%clk 0:01:57]}  Rxf4 {[%clk 0:01:58]} 19. Bxf4 {[%clk 0:01:55]}  gxf4 {[%clk 0:01:58]} 20. Qxe6+ {[%clk 0:01:55]}  Kh8 {[%clk 0:01:56]} 21. Nf5 {[%clk 0:01:54]}  Bf8 {[%clk 0:01:52]} 22. Qxd5 {[%clk 0:01:53]}  g6 {[%clk 0:01:45]} 23. Nh4 {[%clk 0:01:52]}  Bg7 {[%clk 0:01:41]} 24. Rae1 {[%clk 0:01:49]}  Rf8 {[%clk 0:01:40]} 25. Nf3 {[%clk 0:01:47]}  h6 {[%clk 0:01:39]} 26. Re6 {[%clk 0:01:45]}  g5 {[%clk 0:01:37]} 27. h3 {[%clk 0:01:45]}  Ne7 {[%clk 0:01:34]} 28. Qd6 {[%clk 0:01:43]}  Qxd6 {[%clk 0:01:34]} 29. Rxd6 {[%clk 0:01:43]}  Nf5 {[%clk 0:01:34]} 30. Re6 {[%clk 0:01:42]}  Ne3 {[%clk 0:01:32]} 31. Re1 {[%clk 0:01:42]}  Rf5 {[%clk 0:01:20]} 32. R1xe3 {[%clk 0:01:29]}  fxe3 {[%clk 0:01:19]} 33. Rxe3 {[%clk 0:01:30]}  Rb5 {[%clk 0:01:15]} 34. Re2 {[%clk 0:01:29]}  Kg8 {[%clk 0:01:13]} 35. Kf2 {[%clk 0:01:29]}  Ra5 {[%clk 0:01:12]} 36. b3 {[%clk 0:01:27]}  b5 {[%clk 0:01:09]} 37. Ke3 {[%clk 0:01:24]}  Ra6 {[%clk 0:01:08]} 38. Kd3 {[%clk 0:01:24]}  Rd6 {[%clk 0:01:02]} 39. Re7 {[%clk 0:01:21]}  a6 {[%clk 0:01:02]} 40. c4 {[%clk 0:01:13]}  bxc4+ {[%clk 0:01:00]} 41. bxc4 {[%clk 0:01:13]}  Rb6 {[%clk 0:01:01]} 42. c5 {[%clk 0:01:12]}  Rb2 {[%clk 0:01:01]} 43. Re2 {[%clk 0:01:11]}  Rb4 {[%clk 0:00:58]} 44. Rc2 {[%clk 0:01:10]}  Rb7 {[%clk 0:00:53]} 45. c6 {[%clk 0:01:10]}  Rc7 {[%clk 0:00:54]} 46. d5 {[%clk 0:01:10]}  Bf8 {[%clk 0:00:54]} 47. Nd4 {[%clk 0:01:09]}  Bd6 {[%clk 0:00:53]} 48. Ne6 {[%clk 0:01:08]}  Rc8 {[%clk 0:00:54]} 49. Rb2 {[%clk 0:01:05]}  Kf7 {[%clk 0:00:53]} 50. Rb7+ {[%clk 0:01:04]}  Kf6 {[%clk 0:00:53]} 51. Ke4 {[%clk 0:01:05]}  h5 {[%clk 0:00:46]} 52. Rd7 {[%clk 0:01:03]}  Bg3 {[%clk 0:00:44]} 53. Rd8 {[%clk 0:01:03]}  Rxd8 {[%clk 0:00:09]} 54. Nxd8 {[%clk 0:01:02]}  g4 {[%clk 0:00:08]} 55. hxg4 {[%clk 0:01:02]}  hxg4 {[%clk 0:00:09]} 56. Nb7 {[%clk 0:01:01]}  Ke7 {[%clk 0:00:08]} 57. Kf5 {[%clk 0:01:01]}  Bc7 {[%clk 0:00:05]} 58. Kxg4 {[%clk 0:01:01]}  Bb6 {[%clk 0:00:04]} 59. Kf5 {[%clk 0:01:01]}  Ke8 {[%clk 0:00:04]} 60. d6 {[%clk 0:01:00]}  a5 {[%clk 0:00:04]} 61. Ke6 {[%clk 0:01:00]}  a4 {[%clk 0:00:04]} 62. c7 {[%clk 0:01:00]} 1-0


[Site "https://www.chess.com"]

[Event "Titled Tuesday Blitz January 10 Early 2023"]
[White "Kosteniuk, Alexandra"]
[Black "Sanal, Vahap"]
[WhiteFideId "4128125"]
[BlackFideId "6300545"]
[WhiteElo "2535"]
[BlackElo "2600"]
[Result "0-1"]
[Round "05"]
[TimeControl "180+2"]
[Date "2023.01.10"]
[WhiteClock "0:00:03"]
[BlackClock "0:00:12"]

1. e4 {[%clk 0:03:00]}  e5 {[%clk 0:02:58]} 2. Nf3 {[%clk 0:03:00]}  Nc6 {[%clk 0:02:58]} 3. Bc4 {[%clk 0:03:00]}  Bc5 {[%clk 0:02:58]} 4. d3 {[%clk 0:03:00]}  Nf6 {[%clk 0:02:58]} 5. Nc3 {[%clk 0:03:00]}  a6 {[%clk 0:02:57]} 6. a4 {[%clk 0:02:54]}  d6 {[%clk 0:02:57]} 7. Be3 {[%clk 0:02:52]}  Nd4 {[%clk 0:02:55]} 8. Bxd4 {[%clk 0:02:50]}  exd4 {[%clk 0:02:51]} 9. Ne2 {[%clk 0:02:50]}  Bg4 {[%clk 0:02:51]} 10. Nf4 {[%clk 0:02:43]}  Nd7 {[%clk 0:02:32]} 11. h3 {[%clk 0:02:28]}  Bxf3 {[%clk 0:02:27]} 12. Qxf3 {[%clk 0:02:28]}  Ne5 {[%clk 0:02:28]} 13. Qg3 {[%clk 0:02:28]}  Bb4+ {[%clk 0:02:26]} 14. Kf1 {[%clk 0:02:23]}  Nxc4 {[%clk 0:02:13]} 15. dxc4 {[%clk 0:02:20]}  O-O {[%clk 0:02:12]} 16. h4 {[%clk 0:02:05]}  Bc5 {[%clk 0:01:47]} 17. h5 {[%clk 0:02:04]}  Qd7 {[%clk 0:01:36]} 18. h6 {[%clk 0:01:52]}  g6 {[%clk 0:01:35]} 19. Nd5 {[%clk 0:01:39]}  f5 {[%clk 0:01:31]} 20. e5 {[%clk 0:01:35]}  Kh8 {[%clk 0:01:15]} 21. b4 {[%clk 0:01:26]}  Ba7 {[%clk 0:01:06]} 22. exd6 {[%clk 0:01:23]}  cxd6 {[%clk 0:01:07]} 23. Qd3 {[%clk 0:01:14]}  Rae8 {[%clk 0:01:02]} 24. g3 {[%clk 0:01:14]}  Re6 {[%clk 0:00:55]} 25. Rh4 {[%clk 0:01:11]}  Kg8 {[%clk 0:00:53]} 26. Kg2 {[%clk 0:01:03]}  Rfe8 {[%clk 0:00:51]} 27. Rxd4 {[%clk 0:00:41]}  Bxd4 {[%clk 0:00:48]} 28. Qxd4 {[%clk 0:00:42]}  Qf7 {[%clk 0:00:48]} 29. Rd1 {[%clk 0:00:27]}  g5 {[%clk 0:00:45]} 30. Rh1 {[%clk 0:00:23]}  f4 {[%clk 0:00:36]} 31. gxf4 {[%clk 0:00:17]}  gxf4 {[%clk 0:00:37]} 32. Kf3 {[%clk 0:00:14]}  Rg6 {[%clk 0:00:33]} 33. Rh4 {[%clk 0:00:13]}  Qe6 {[%clk 0:00:28]} 34. Nxf4 {[%clk 0:00:11]}  Qf5 {[%clk 0:00:21]} 35. Qd5+ {[%clk 0:00:11]}  Qxd5+ {[%clk 0:00:21]} 36. Nxd5 {[%clk 0:00:09]}  Rf8+ {[%clk 0:00:20]} 37. Ke2 {[%clk 0:00:09]}  Re6+ {[%clk 0:00:20]} 38. Ne3 {[%clk 0:00:07]}  Rff6 {[%clk 0:00:20]} 39. Rg4+ {[%clk 0:00:07]}  Rg6 {[%clk 0:00:20]} 40. Rd4 {[%clk 0:00:06]}  Rxh6 {[%clk 0:00:20]} 41. b5 {[%clk 0:00:06]}  Rhf6 {[%clk 0:00:18]} 42. bxa6 {[%clk 0:00:06]}  bxa6 {[%clk 0:00:18]} 43. Rd5 {[%clk 0:00:06]}  Kf7 {[%clk 0:00:17]} 44. Ra5 {[%clk 0:00:06]}  Rf4 {[%clk 0:00:15]} 45. Rxa6 {[%clk 0:00:06]}  Rxc4 {[%clk 0:00:14]} 46. Kd3 {[%clk 0:00:07]}  Rc5 {[%clk 0:00:14]} 47. Ra7+ {[%clk 0:00:07]}  Kg6 {[%clk 0:00:14]} 48. c4 {[%clk 0:00:07]}  h5 {[%clk 0:00:15]} 49. Ra8 {[%clk 0:00:06]}  Kg7 {[%clk 0:00:14]} 50. Ra7+ {[%clk 0:00:06]}  Kg6 {[%clk 0:00:13]} 51. Ra8 {[%clk 0:00:06]}  h4 {[%clk 0:00:13]} 52. Rg8+ {[%clk 0:00:06]}  Kh7 {[%clk 0:00:13]} 53. Rg1 {[%clk 0:00:06]}  h3 {[%clk 0:00:13]} 54. Rh1 {[%clk 0:00:06]}  Rh5 {[%clk 0:00:14]} 55. a5 {[%clk 0:00:06]}  Reh6 {[%clk 0:00:13]} 56. Rh2 {[%clk 0:00:05]}  Rxa5 {[%clk 0:00:12]} 57. Ng4 {[%clk 0:00:04]}  Rh4 {[%clk 0:00:13]} 58. Nf6+ {[%clk 0:00:04]}  Kg6 {[%clk 0:00:13]} 59. Nd5 {[%clk 0:00:02]}  Ra3+ {[%clk 0:00:14]} 60. Ke2 {[%clk 0:00:02]}  Kg5 {[%clk 0:00:13]} 61. Ne3 {[%clk 0:00:02]}  Kf4 {[%clk 0:00:12]} 62. Nd5+ {[%clk 0:00:02]}  Ke5 {[%clk 0:00:11]} 63. Ne3 {[%clk 0:00:03]}  Ke4 {[%clk 0:00:11]} 64. Kf1 {[%clk 0:00:02]}  Kf3 {[%clk 0:00:11]} 65. Kg1 {[%clk 0:00:02]}  Ra1+ {[%clk 0:00:11]} 66. Nf1 {[%clk 0:00:03]}  Rg4+ {[%clk 0:00:12]} 0-1


[Site "https://www.chess.com"]

[Event "Titled Tuesday Blitz January 10 Early 2023"]
[White "Movahed, Sina"]
[Black "Seemann, Jakub"]
[WhiteFideId "42520835"]
[BlackFideId "21874697"]
[WhiteElo "2340"]
[BlackElo "2446"]
[Result "1-0"]
[Round "05"]
[TimeControl "180+2"]
[Date "2023.01.10"]
[WhiteClock "0:01:42"]
[BlackClock "0:00:09"]

1. e4 {[%clk 0:03:00]}  c6 {[%clk 0:02:53]} 2. d4 {[%clk 0:02:59]}  d5 {[%clk 0:02:53]} 3. e5 {[%clk 0:02:59]}  Bf5 {[%clk 0:02:53]} 4. g4 {[%clk 0:02:58]}  Be4 {[%clk 0:02:49]} 5. f3 {[%clk 0:02:59]}  Bg6 {[%clk 0:02:50]} 6. e6 {[%clk 0:02:59]}  Qd6 {[%clk 0:02:46]} 7. exf7+ {[%clk 0:02:56]}  Bxf7 {[%clk 0:02:47]} 8. f4 {[%clk 0:02:52]}  c5 {[%clk 0:02:47]} 9. Nf3 {[%clk 0:02:52]}  Nc6 {[%clk 0:02:46]} 10. Bb5 {[%clk 0:02:51]}  O-O-O {[%clk 0:02:45]} 11. Bxc6 {[%clk 0:02:51]}  bxc6 {[%clk 0:02:41]} 12. Ne5 {[%clk 0:02:49]}  Be8 {[%clk 0:02:40]} 13. dxc5 {[%clk 0:02:30]}  Qxc5 {[%clk 0:02:39]} 14. Qd3 {[%clk 0:02:30]}  Nf6 {[%clk 0:02:36]} 15. Nc3 {[%clk 0:02:25]}  h5 {[%clk 0:02:21]} 16. Be3 {[%clk 0:02:15]}  d4 {[%clk 0:02:06]} 17. O-O-O {[%clk 0:02:14]}  Qb6 {[%clk 0:01:43]} 18. Bxd4 {[%clk 0:02:11]}  c5 {[%clk 0:01:43]} 19. Qc4 {[%clk 0:02:11]}  e6 {[%clk 0:01:38]} 20. g5 {[%clk 0:02:11]}  Nd5 {[%clk 0:01:30]} 21. Ne4 {[%clk 0:02:08]}  Bb5 {[%clk 0:01:28]} 22. Bxc5 {[%clk 0:02:08]}  Qa5 {[%clk 0:00:23]} 23. Qb3 {[%clk 0:01:52]}  Bxc5 {[%clk 0:00:23]} 24. Nxc5 {[%clk 0:01:53]}  Nxf4 {[%clk 0:00:21]} 25. a4 {[%clk 0:01:45]}  Ne2+ {[%clk 0:00:18]} 26. Kb1 {[%clk 0:01:45]}  Nd4 {[%clk 0:00:16]} 27. Rxd4 {[%clk 0:01:43]}  Rxd4 {[%clk 0:00:17]} 28. axb5 {[%clk 0:01:44]}  Rd5 {[%clk 0:00:16]} 29. Nc6 {[%clk 0:01:42]}  Qb6 {[%clk 0:00:12]} 30. Ne7+ {[%clk 0:01:42]}  Kb8 {[%clk 0:00:09]} 31. Na6+ {[%clk 0:01:42]} 1-0


[Site "https://www.chess.com"]

[Event "Titled Tuesday Blitz January 10 Early 2023"]
[White "Sarana, Alexey"]
[Black "Aradhya, Garg"]
[WhiteFideId "24133795"]
[BlackFideId "25006746"]
[WhiteElo "2685"]
[BlackElo "2284"]
[Result "1-0"]
[Round "05"]
[TimeControl "180+2"]
[Date "2023.01.10"]
[WhiteClock "0:00:28"]
[BlackClock "0:00:13"]

1. c4 {[%clk 0:02:50]}  c5 {[%clk 0:02:58]} 2. Nf3 {[%clk 0:02:50]}  Nc6 {[%clk 0:02:58]} 3. Nc3 {[%clk 0:02:48]}  Nf6 {[%clk 0:02:54]} 4. g3 {[%clk 0:02:48]}  g6 {[%clk 0:02:52]} 5. Bg2 {[%clk 0:02:48]}  Bg7 {[%clk 0:02:50]} 6. O-O {[%clk 0:02:49]}  d5 {[%clk 0:02:48]} 7. cxd5 {[%clk 0:02:49]}  Nxd5 {[%clk 0:02:46]} 8. Nxd5 {[%clk 0:02:47]}  Qxd5 {[%clk 0:02:46]} 9. d3 {[%clk 0:02:48]}  O-O {[%clk 0:02:45]} 10. Be3 {[%clk 0:02:48]}  Qd6 {[%clk 0:02:45]} 11. Rc1 {[%clk 0:02:48]}  b6 {[%clk 0:02:21]} 12. d4 {[%clk 0:02:48]}  cxd4 {[%clk 0:02:21]} 13. Rxc6 {[%clk 0:02:46]}  Qxc6 {[%clk 0:02:21]} 14. Nxd4 {[%clk 0:02:46]}  Qd6 {[%clk 0:02:07]} 15. Bxa8 {[%clk 0:02:45]}  Bh3 {[%clk 0:02:08]} 16. Bg2 {[%clk 0:01:56]}  Bxg2 {[%clk 0:02:07]} 17. Kxg2 {[%clk 0:01:56]}  Rd8 {[%clk 0:02:03]} 18. Qa4 {[%clk 0:01:56]}  Bxd4 {[%clk 0:02:01]} 19. Rd1 {[%clk 0:01:54]}  e5 {[%clk 0:01:52]} 20. Bxd4 {[%clk 0:01:52]}  exd4 {[%clk 0:01:52]} 21. e3 {[%clk 0:01:32]}  Qd5+ {[%clk 0:01:40]} 22. f3 {[%clk 0:01:23]}  d3 {[%clk 0:01:36]} 23. Kf2 {[%clk 0:01:22]}  a6 {[%clk 0:01:23]} 24. Rd2 {[%clk 0:01:08]}  Qc5 {[%clk 0:00:49]} 25. Qb3 {[%clk 0:01:06]}  Qd6 {[%clk 0:00:44]} 26. Qa3 {[%clk 0:01:00]}  Qc6 {[%clk 0:00:37]} 27. Qc3 {[%clk 0:00:59]}  Qb5 {[%clk 0:00:32]} 28. b3 {[%clk 0:00:55]}  h5 {[%clk 0:00:25]} 29. e4 {[%clk 0:00:54]}  Rd6 {[%clk 0:00:20]} 30. Ke3 {[%clk 0:00:48]}  Qg5+ {[%clk 0:00:19]} 31. f4 {[%clk 0:00:48]}  Qg4 {[%clk 0:00:18]} 32. Rxd3 {[%clk 0:00:47]}  Rxd3+ {[%clk 0:00:18]} 33. Qxd3 {[%clk 0:00:48]}  Qh3 {[%clk 0:00:17]} 34. Qe2 {[%clk 0:00:42]}  h4 {[%clk 0:00:16]} 35. Qf2 {[%clk 0:00:41]}  hxg3 {[%clk 0:00:16]} 36. hxg3 {[%clk 0:00:42]}  Qe6 {[%clk 0:00:16]} 37. Qe2 {[%clk 0:00:40]}  Qh3 {[%clk 0:00:16]} 38. Qf2 {[%clk 0:00:38]}  Qe6 {[%clk 0:00:15]} 39. f5 {[%clk 0:00:35]}  Qd6 {[%clk 0:00:15]} 40. fxg6 {[%clk 0:00:33]}  fxg6 {[%clk 0:00:15]} 41. Kf3 {[%clk 0:00:30]}  Qf6+ {[%clk 0:00:15]} 42. Kg2 {[%clk 0:00:30]}  Qe5 {[%clk 0:00:15]} 43. Qe2 {[%clk 0:00:28]}  Kg7 {[%clk 0:00:12]} 44. a4 {[%clk 0:00:24]}  a5 {[%clk 0:00:12]} 45. Qe3 {[%clk 0:00:24]}  Qb2+ {[%clk 0:00:11]} 46. Kh3 {[%clk 0:00:25]}  Qe5 {[%clk 0:00:11]} 47. Qf3 {[%clk 0:00:21]}  Qe6+ {[%clk 0:00:10]} 48. Kg2 {[%clk 0:00:22]}  Qe5 {[%clk 0:00:10]} 49. Qd3 {[%clk 0:00:22]}  Qb2+ {[%clk 0:00:10]} 50. Kf3 {[%clk 0:00:23]}  Qf6+ {[%clk 0:00:10]} 51. Ke3 {[%clk 0:00:23]}  Qg5+ {[%clk 0:00:10]} 52. Ke2 {[%clk 0:00:23]}  Qg4+ {[%clk 0:00:09]} 53. Kd2 {[%clk 0:00:23]}  Qg5+ {[%clk 0:00:09]} 54. Kc2 {[%clk 0:00:23]}  Kh7 {[%clk 0:00:07]} 55. Qd7+ {[%clk 0:00:21]}  Kh6 {[%clk 0:00:07]} 56. Qd2 {[%clk 0:00:20]}  Kh5 {[%clk 0:00:07]} 57. Qxg5+ {[%clk 0:00:20]}  Kxg5 {[%clk 0:00:08]} 58. Kd3 {[%clk 0:00:20]}  Kg4 {[%clk 0:00:07]} 59. e5 {[%clk 0:00:20]}  Kf5 {[%clk 0:00:06]} 60. Kd4 {[%clk 0:00:20]}  Ke6 {[%clk 0:00:07]} 61. Ke4 {[%clk 0:00:21]}  g5 {[%clk 0:00:07]} 62. g4 {[%clk 0:00:22]}  Ke7 {[%clk 0:00:07]} 63. Kd5 {[%clk 0:00:22]}  Kf7 {[%clk 0:00:08]} 64. e6+ {[%clk 0:00:23]}  Ke7 {[%clk 0:00:08]} 65. Ke5 {[%clk 0:00:24]}  Ke8 {[%clk 0:00:08]} 66. Kf6 {[%clk 0:00:23]}  Kf8 {[%clk 0:00:09]} 67. Kxg5 {[%clk 0:00:24]}  Ke7 {[%clk 0:00:09]} 68. Kf5 {[%clk 0:00:25]}  Ke8 {[%clk 0:00:09]} 69. g5 {[%clk 0:00:25]}  Ke7 {[%clk 0:00:10]} 70. g6 {[%clk 0:00:26]}  Ke8 {[%clk 0:00:11]} 71. Kf6 {[%clk 0:00:26]}  Kf8 {[%clk 0:00:11]} 72. g7+ {[%clk 0:00:27]}  Kg8 {[%clk 0:00:12]} 73. e7 {[%clk 0:00:27]}  Kh7 {[%clk 0:00:12]} 74. e8=Q {[%clk 0:00:28]}  Kh6 {[%clk 0:00:13]} 75. Qh8# {[%clk 0:00:28]} 1-0


[Site "https://www.chess.com"]

[Event "Titled Tuesday Blitz January 10 Early 2023"]
[White "Maksimovic, Bojan"]
[Black "Eljanov, Pavel"]
[WhiteFideId "14408120"]
[BlackFideId "14102951"]
[WhiteElo "2486"]
[BlackElo "2705"]
[Result "1/2-1/2"]
[Round "05"]
[TimeControl "180+2"]
[Date "2023.01.10"]
[WhiteClock "0:00:04"]
[BlackClock "0:00:20"]

1. g3 {[%clk 0:03:00]}  d5 {[%clk 0:02:56]} 2. Bg2 {[%clk 0:03:01]}  e5 {[%clk 0:02:56]} 3. Nf3 {[%clk 0:03:01]}  Nc6 {[%clk 0:02:56]} 4. O-O {[%clk 0:03:01]}  Nf6 {[%clk 0:02:55]} 5. c4 {[%clk 0:03:01]}  d4 {[%clk 0:02:52]} 6. d3 {[%clk 0:03:01]}  a5 {[%clk 0:02:43]} 7. e3 {[%clk 0:02:57]}  dxe3 {[%clk 0:02:35]} 8. Bxe3 {[%clk 0:02:58]}  Be7 {[%clk 0:02:36]} 9. Nc3 {[%clk 0:02:55]}  O-O {[%clk 0:02:36]} 10. d4 {[%clk 0:02:56]}  exd4 {[%clk 0:02:36]} 11. Nxd4 {[%clk 0:02:56]}  Nxd4 {[%clk 0:02:36]} 12. Qxd4 {[%clk 0:02:54]}  c6 {[%clk 0:02:34]} 13. Rfd1 {[%clk 0:02:37]}  Be6 {[%clk 0:02:28]} 14. b3 {[%clk 0:02:35]}  Qxd4 {[%clk 0:02:23]} 15. Bxd4 {[%clk 0:02:34]}  Rfd8 {[%clk 0:02:22]} 16. Bb6 {[%clk 0:02:27]}  Rxd1+ {[%clk 0:02:21]} 17. Rxd1 {[%clk 0:02:28]}  Nd7 {[%clk 0:02:21]} 18. Be3 {[%clk 0:02:23]}  Nc5 {[%clk 0:02:09]} 19. h3 {[%clk 0:02:12]}  h5 {[%clk 0:02:06]} 20. f4 {[%clk 0:02:06]}  Bf5 {[%clk 0:01:37]} 21. Kf2 {[%clk 0:01:55]}  g6 {[%clk 0:01:37]} 22. Kf3 {[%clk 0:01:47]}  Be6 {[%clk 0:01:25]} 23. g4 {[%clk 0:01:46]}  hxg4+ {[%clk 0:01:25]} 24. hxg4 {[%clk 0:01:46]}  a4 {[%clk 0:01:20]} 25. Bxc5 {[%clk 0:01:44]}  Bxc5 {[%clk 0:01:18]} 26. Nxa4 {[%clk 0:01:44]}  Bb4 {[%clk 0:01:17]} 27. Bf1 {[%clk 0:01:41]}  Kg7 {[%clk 0:01:16]} 28. Bd3 {[%clk 0:01:37]}  Kf6 {[%clk 0:01:10]} 29. f5 {[%clk 0:01:01]}  gxf5 {[%clk 0:01:09]} 30. gxf5 {[%clk 0:01:02]}  b5 {[%clk 0:01:08]} 31. fxe6 {[%clk 0:00:36]}  bxa4 {[%clk 0:01:06]} 32. exf7 {[%clk 0:00:32]}  Kxf7 {[%clk 0:01:06]} 33. Be4 {[%clk 0:00:28]}  axb3 {[%clk 0:01:06]} 34. axb3 {[%clk 0:00:29]}  Ra3 {[%clk 0:01:06]} 35. Bxc6 {[%clk 0:00:29]}  Rxb3+ {[%clk 0:01:06]} 36. Ke4 {[%clk 0:00:29]}  Rh3 {[%clk 0:01:01]} 37. Bd5+ {[%clk 0:00:25]}  Ke7 {[%clk 0:01:01]} 38. Rb1 {[%clk 0:00:24]}  Bc5 {[%clk 0:00:59]} 39. Rb8 {[%clk 0:00:22]}  Kf6 {[%clk 0:00:57]} 40. Rc8 {[%clk 0:00:18]}  Re3+ {[%clk 0:00:57]} 41. Kf4 {[%clk 0:00:19]}  Bd4 {[%clk 0:00:56]} 42. Rc6+ {[%clk 0:00:18]}  Ke7 {[%clk 0:00:56]} 43. Be4 {[%clk 0:00:17]}  Rc3 {[%clk 0:00:53]} 44. Bf5 {[%clk 0:00:13]}  Rc1 {[%clk 0:00:49]} 45. Ke4 {[%clk 0:00:13]}  Bg1 {[%clk 0:00:48]} 46. Re6+ {[%clk 0:00:12]}  Kf7 {[%clk 0:00:48]} 47. Kd5 {[%clk 0:00:11]}  Rd1+ {[%clk 0:00:44]} 48. Kc6 {[%clk 0:00:11]}  Rf1 {[%clk 0:00:43]} 49. Bh3 {[%clk 0:00:07]}  Rf3 {[%clk 0:00:43]} 50. Re1 {[%clk 0:00:06]}  Bd4 {[%clk 0:00:38]} 51. Be6+ {[%clk 0:00:06]}  Kf6 {[%clk 0:00:38]} 52. Bd5 {[%clk 0:00:06]}  Re3 {[%clk 0:00:38]} 53. Rf1+ {[%clk 0:00:06]}  Ke7 {[%clk 0:00:32]} 54. Rf7+ {[%clk 0:00:06]}  Ke8 {[%clk 0:00:32]} 55. Rh7 {[%clk 0:00:06]}  Re7 {[%clk 0:00:30]} 56. Rh5 {[%clk 0:00:05]}  Ra7 {[%clk 0:00:24]} 57. c5 {[%clk 0:00:04]}  Ra5 {[%clk 0:00:21]} 58. Bc4 {[%clk 0:00:03]}  Rxc5+ {[%clk 0:00:20]} 59. Rxc5 {[%clk 0:00:04]}  Bxc5 {[%clk 0:00:20]} 1/2-1/2


[Site "https://www.chess.com"]

[Event "Titled Tuesday Blitz January 10 Early 2023"]
[White "Vokhidov, Shamsiddin"]
[Black "Ioannidis, Evgenios"]
[WhiteFideId "14204223"]
[BlackFideId "4229274"]
[WhiteElo "2586"]
[BlackElo "2467"]
[Result "1-0"]
[Round "05"]
[TimeControl "180+2"]
[Date "2023.01.10"]
[WhiteClock "0:01:30"]
[BlackClock "0:00:01"]

1. e4 {[%clk 0:03:00]}  e5 {[%clk 0:02:58]} 2. Nf3 {[%clk 0:03:00]}  Nc6 {[%clk 0:02:58]} 3. Nc3 {[%clk 0:03:01]}  Nf6 {[%clk 0:02:58]} 4. a3 {[%clk 0:03:02]}  a6 {[%clk 0:02:23]} 5. d4 {[%clk 0:03:01]}  exd4 {[%clk 0:02:12]} 6. Nxd4 {[%clk 0:03:02]}  Bc5 {[%clk 0:01:27]} 7. Be3 {[%clk 0:03:00]}  Nxd4 {[%clk 0:00:54]} 8. Bxd4 {[%clk 0:03:01]}  Bxd4 {[%clk 0:00:54]} 9. Qxd4 {[%clk 0:03:01]}  d6 {[%clk 0:00:54]} 10. O-O-O {[%clk 0:03:00]}  Qe7 {[%clk 0:00:52]} 11. f4 {[%clk 0:03:00]}  Bg4 {[%clk 0:00:49]} 12. Re1 {[%clk 0:02:57]}  Be6 {[%clk 0:00:42]} 13. Bd3 {[%clk 0:02:43]}  c5 {[%clk 0:00:38]} 14. Qf2 {[%clk 0:02:42]}  c4 {[%clk 0:00:38]} 15. Be2 {[%clk 0:02:26]}  b5 {[%clk 0:00:32]} 16. g4 {[%clk 0:02:13]}  O-O-O {[%clk 0:00:16]} 17. g5 {[%clk 0:02:11]}  Ne8 {[%clk 0:00:15]} 18. Qd4 {[%clk 0:02:04]}  Nc7 {[%clk 0:00:11]} 19. Bf3 {[%clk 0:02:03]}  Kb8 {[%clk 0:00:07]} 20. Qb6+ {[%clk 0:02:02]}  Kc8 {[%clk 0:00:05]} 21. h4 {[%clk 0:01:54]}  Rhe8 {[%clk 0:00:05]} 22. f5 {[%clk 0:01:41]}  Bd7 {[%clk 0:00:04]} 23. e5 {[%clk 0:01:41]}  d5 {[%clk 0:00:03]} 24. Bxd5 {[%clk 0:01:35]}  Bxf5 {[%clk 0:00:01]} 25. Bb7+ {[%clk 0:01:30]} 1-0


[Site "https://www.chess.com"]